fUSD/lending_fUSD_20240515
["ID","MTS","AMOUNT","RATE_DAILY","PERIOD"]
[327057015,1715758240636,-217.68183676,0.00011925,2]
[327057016,1715758240645,-410.96428254,0.00011926,2]
[327057017,1715758240654,-207.92488696,0.00011926,2]
[327057018,1715758240664,-5172.09256023,0.00011926,2]
[327057019,1715758240673,-202.86957233,0.00011926,3]
[327057020,1715758240683,-590.0,0.00011926,2]
[327057021,1715758240693,-271872.72152702,0.00011926,2]
[327057022,1715758240703,-65708.95713409,0.00011927,2]
[327057023,1715758240716,-819236.53115778,0.00011927,2]
[327057054,1715758244885,-444.24779552,0.00011779,2]
[327057055,1715758244897,-993.12736041,0.00011779,2]
[327057063,1715758245828,-645.56732268,0.00011779,2]
[327057066,1715758302759,-1500.0,0.00013,5]
[327057075,1715758513423,153.0,0.00011926,3]
[327057076,1715758545923,645.3,8.264e-05,2]
[327057105,1715759057555,3354.7,8.264e-05,2]
[327057106,1715759057577,4000.0,8.264e-05,2]
[327057107,1715759057602,4000.0,8.264e-05,2]
[327057108,1715759057623,4000.0,8.264e-05,2]
[327057109,1715759057645,4000.0,8.264e-05,2]
[327057110,1715759057673,41259.61842929,8.264e-05,2]
[327057244,1715759431548,-176.48744636,8.646e-05,2]
[327057246,1715759431558,-103.45184221,8.647e-05,2]
[327057247,1715759431570,-509.57815779,8.647e-05,2]
[327057248,1715759431580,-204.51599326,0.0001,2]
[327057249,1715759431590,-252.34048269,0.00010182,2]
[327057250,1715759431616,-580.66951731,0.00010182,2]
[327057251,1715759431629,-150.46557889,0.00010182,2]
[327057252,1715759431682,-5.35442111,0.00010182,2]
[327057253,1715759431692,-250.0,0.00010182,2]
[327057254,1715759431703,-250.0,0.00010438,2]
[327057255,1715759431713,-159.53,0.00010506,2]
[327057256,1715759431722,-5462.34357889,0.00010521,2]
[327057257,1715759431735,-630.52693399,0.00010521,2]
[327057258,1715759431747,-2110.32407728,0.00010521,2]
[327057259,1715759431829,-368.45856982,0.00010521,2]
[327057260,1715759431884,-1803.49,0.00010521,2]
[327057261,1715759431897,-800.0,0.00010521,2]
[327057281,1715759437628,-364.0,0.00010521,2]
[327057289,1715759437692,-5080.02471071,0.00010521,2]
[327057300,1715759437799,-383.0418303,0.00010521,2]
[327057301,1715759437811,-2364.32136448,0.00010521,2]
[327057302,1715759437823,-4533.46893453,0.00010521,2]
[327057303,1715759437833,-153.0,0.0001058,2]
[327057304,1715759437842,-153.0,0.00010587,2]
[327057305,1715759437852,-153.0,0.00010595,2]
[327057306,1715759437863,-153.0,0.00010603,2]
[327057307,1715759437872,-153.0,0.0001061,2]
[327057308,1715759437882,-153.0,0.00010618,2]
[327057309,1715759437892,-153.0,0.00010625,2]
[327057310,1715759437902,-153.0,0.00010633,2]
[327057311,1715759437913,-150.0,0.00010685,2]
[327057312,1715759437923,-159.53,0.00010688,2]
[327057313,1715759437932,-174.48,0.00010716,2]
[327057314,1715759437942,-1000.0,0.00010754,2]
[327057315,1715759437952,-159.53,0.0001087,2]
[327057316,1715759437963,-613.03,0.00010911,2]
[327057317,1715759437973,-2000.0,0.00010959,2]
[327057318,1715759437985,-159.53,0.00011053,2]
[327057319,1715759437996,-279.61,0.00011204,2]
[327057320,1715759438009,-155.82,0.00011455,2]
[327057321,1715759438018,-1000.0,0.000116,2]
[327057322,1715759438029,-1000.0,0.00011778,2]
[327057323,1715759438041,-12092.173,0.00011779,2]
[327057324,1715759438051,-1000.0,0.00011779,2]
[327057325,1715759438061,-417.0575,0.00011779,2]
[327057326,1715759438072,-155.19873687,0.00011826,2]
[327057327,1715759438083,-11131.3067,0.00011826,2]
[327057328,1715759438093,-9964.0273029,0.00011826,2]
[327057329,1715759438120,-5017.4329971,0.00011826,2]
[327057330,1715759438130,-10000.0,0.00011827,2]
[327057331,1715759438140,-2897.71862775,0.00011827,2]
[327057332,1715759438153,-1384.31045091,0.00011827,2]
[327057333,1715759438179,-35.24392134,0.00011827,2]
[327057334,1715759438189,-374.36015138,0.00011827,2]
[327057335,1715759438198,-56418.80334869,0.00011827,2]
[327057336,1715759438208,-384.10940713,0.00011827,2]
[327057337,1715759438218,-12680.5579543,0.00011827,2]
[327057338,1715759438228,-654.25099036,0.00011827,2]
[327057339,1715759438239,-500.0,0.00011831,2]
[327057340,1715759438250,-202.402518,0.00011832,2]
[327057341,1715759438259,-500.0,0.00011832,2]
[327057342,1715759438270,-56418.80334858,0.00011879,2]
[327057343,1715759438280,-800.0,0.0001189,2]
[327057344,1715759438290,-800.0,0.0001189,2]
[327057345,1715759438301,-976.00733352,0.00011912,2]
[327057346,1715759438311,-160.99,0.00011913,2]
[327057347,1715759438320,-261.87698242,0.00011915,2]
[327057348,1715759438330,-160.99,0.00011916,2]
[327057349,1715759438340,-261.87698242,0.00011917,2]
[327057350,1715759438350,-261.87698242,0.00011917,2]
[327057351,1715759438360,-160.99,0.00011917,2]
[327057352,1715759438369,-160.99,0.00011917,2]
[327057353,1715759438380,-160.99,0.00011917,2]
[327057354,1715759438389,-12073.50026171,0.0001192,2]
[327057355,1715759438399,-155.0,0.00011923,2]
[327057356,1715759438409,-236.47460547,0.00011923,2]
[327057357,1715759438419,-281.81285646,0.00011923,2]
[327057358,1715759438429,-158.39167548,0.00011923,2]
[327057359,1715759438438,-410.96428254,0.00011923,2]
[327057360,1715759438448,-885.28939751,0.00011923,2]
[327057361,1715759438458,-284.98562185,0.00011923,2]
[327057362,1715759438468,-1222.42408721,0.00011923,2]
[327057363,1715759438478,-231.50937851,0.00011923,2]
[327057364,1715759438487,-1379.88066855,0.00011923,2]
[327057365,1715759438497,-2890.02674658,0.00011923,2]
[327057366,1715759438506,-193.20445824,0.00011923,2]
[327057367,1715759438516,-1137.94257999,0.00011923,2]
[327057368,1715759438525,-168.43317698,0.00011923,2]
[327057369,1715759438535,-3834.41334804,0.00011923,2]
[327057370,1715759438545,-1623.84550739,0.00011923,2]
[327057371,1715759438554,-2214.05733892,0.00011923,2]
[327057372,1715759438564,-259.35945223,0.00011923,2]
[327057373,1715759438574,-155.29631137,0.00011923,2]
[327057374,1715759438583,-490.48999384,0.00011923,2]
[327057375,1715759438593,-155.18112346,0.00011923,2]
[327057376,1715759438602,-276.26477197,0.00011923,2]
[327057377,1715759438612,-658.682709,0.00011923,2]
[327057378,1715759438623,-542.23618842,0.00011923,2]
[327057379,1715759438633,-336.93354874,0.00011923,2]
[327057380,1715759438642,-377.69271181,0.00011923,2]
[327057381,1715759438652,-783.62102359,0.00011923,2]
[327057382,1715759438661,-398.39865709,0.00011923,2]
[327057383,1715759438671,-3274.01381714,0.00011923,2]
[327057384,1715759438684,-293.06056207,0.00011923,2]
[327057385,1715759438693,-217.68183676,0.00011923,2]
[327057386,1715759438703,-233.41538428,0.00011923,2]
[327057387,1715759438713,-281.05079772,0.00011925,2]
[327057389,1715759438722,-359.62603416,0.00011925,2]
[327057391,1715759438731,-364839.91195953,0.00011925,2]
[327057393,1715759438741,-207.92488696,0.00011926,2]
[327057395,1715759438751,-5865.7372962,0.00011926,2]
[327057397,1715759438761,-49.86957233,0.00011926,3]
[327057399,1715759438771,-409.53880805,0.00011926,2]
[327057401,1715759438780,-548.53577545,0.00011926,2]
[327057403,1715759438790,-180.10595824,0.00011926,2]
[327057405,1715759438799,-298.75742106,0.00011926,2]
[327057407,1715759438808,-597.0,0.00011926,2]
[327057409,1715759438818,-271872.72152702,0.00011926,2]
[327057411,1715759438827,-310491.6264954,0.00011927,2]
[327057413,1715759438839,-819236.53115778,0.00011927,2]
[327057418,1715759438876,-539.00383144,0.00011927,2]
[327057423,1715759439732,-392.58531307,0.00011927,2]
[327057424,1715759439745,-8907.25393784,0.00011927,2]
[327057425,1715759439895,-12467.886,0.00011927,2]
[327057426,1715759440492,-302.615,0.00011927,2]
[327057427,1715759440658,-1083.66999818,0.00011927,2]
[327057428,1715759440671,-2554.23744066,0.00011927,2]
[327057429,1715759440713,-1200.0,0.00011927,2]
[327057455,1715759442904,-611.98425027,0.00011927,2]
[327057456,1715759442941,-519.476,0.00011927,2]
[327057474,1715759445749,-5.90548335,0.00011779,2]
[327057475,1715759445868,-1045.52761665,0.00011779,2]
[327057476,1715759445878,-2579.23597257,0.00011827,2]
[327057477,1715759445887,-291.11710247,0.00011926,2]
[327057478,1715759445896,-207.92488696,0.00011926,2]
[327057479,1715759445905,-188.60347611,0.00011926,2]
[327057480,1715759445915,-57876.18508046,0.00011927,2]
[327057482,1715760166277,551.72,8.418e-05,2]
[327057483,1715760252165,2546.70033184,6.314e-05,2]
[327057484,1715760272174,2543.01111664,6.314e-05,2]
[327057485,1715760481768,76090.76049763,6.314e-05,2]
[327057496,1715760631759,-445.35675783,9.98e-05,2]
[327057497,1715760631772,-77.75977775,9.98e-05,2]
[327057498,1715760631781,-250.0,9.981e-05,2]
[327057499,1715760631792,-292.24022225,9.986e-05,2]
[327057500,1715760631804,-13012.55603637,9.986e-05,2]
[327057501,1715760631817,-1460.30374138,9.986e-05,2]
[327057502,1715760631826,-250.0,0.00010082,2]
[327057503,1715760631836,-309.59,0.000101,2]
[327057504,1715760631846,-151.04,0.00010202,2]
[327057505,1715760631856,-151.04,0.0001025,2]
[327057506,1715760631866,-151.04,0.00010299,2]
[327057507,1715760631876,-554.66,0.00010318,2]
[327057508,1715760631885,-151.04,0.00010347,2]
[327057509,1715760631894,-151.04,0.00010395,2]
[327057510,1715760631904,-263.45,0.00010411,2]
[327057511,1715760631914,-206.78,0.00010411,2]
[327057512,1715760631923,-151.04,0.00010444,2]
[327057513,1715760631932,-153.02,0.00010478,2]
[327057514,1715760631942,-153.02,0.00010485,2]
[327057515,1715760631951,-151.04,0.00010492,2]
[327057516,1715760631960,-153.02,0.00010493,2]
[327057517,1715760631968,-552.43,0.00010493,2]
[327057518,1715760631980,-216.51,0.00010494,2]
[327057519,1715760631989,-153.02,0.000105,2]
[327057520,1715760632001,-153.02,0.00010508,2]
[327057521,1715760632011,-153.02,0.00010515,2]
[327057522,1715760632020,-153.02,0.00010523,2]
[327057523,1715760632029,-153.02,0.0001053,2]
[327057524,1715760632038,-120.46139694,0.0001054,2]
[327057525,1715760632051,-30.57860306,0.0001054,2]
[327057526,1715760632059,-151.04,0.00010589,2]
[327057528,1715760632069,-151.04,0.00010637,2]
[327057529,1715760632085,-551.72,0.00010682,2]
[327057530,1715760632094,-151.04,0.00010685,2]
[327057531,1715760632104,-1000.0,0.0001071,2]
[327057532,1715760632114,-151.04,0.00010734,2]
[327057534,1715760632123,-240.34,0.00010959,2]
[327057535,1715760632132,-200.0,0.00011,2]
[327057537,1715760632141,-869.9410049,0.00011099,2]
[327057539,1715760632162,-628.12349577,0.00011099,2]
[327057541,1715760632173,-1319.57899933,0.00011099,2]
[327057543,1715760632182,-219.78498041,0.000112,4]
[327057544,1715760632193,-280.21501959,0.000112,4]
[327057546,1715760632203,-150.0,0.00011233,2]
[327057548,1715760632212,-420.44,0.00011233,2]
[327057549,1715760632222,-351.31,0.00011233,2]
[327057551,1715760632230,-122.79849197,0.00011233,2]
[327057552,1715760632242,-27.20150803,0.00011233,2]
[327057554,1715760632251,-420.44,0.00011233,2]
[327057556,1715760632260,-150.0,0.00011233,2]
[327057558,1715760632268,-150.0,0.00011233,2]
[327057559,1715760632278,-150.0,0.00011233,2]
[327057561,1715760632287,-163.35,0.00011233,2]
[327057563,1715760632296,-523.66,0.00011233,2]
[327057565,1715760632306,-523.66,0.00011233,2]
[327057566,1715760632315,-150.0,0.00011233,2]
[327057568,1715760632325,-163.35,0.00011233,2]
[327057570,1715760632334,-150.0,0.00011233,2]
[327057571,1715760632343,-150.0,0.00011233,2]
[327057573,1715760632352,-419.8,0.00011233,2]
[327057575,1715760632361,-150.0,0.00011233,2]
[327057577,1715760632371,-150.0,0.00011233,2]
[327057578,1715760632380,-523.66,0.00011233,2]
[327057580,1715760632390,-163.35,0.00011233,2]
[327057582,1715760632399,-150.0,0.00011233,2]
[327057584,1715760632408,-163.35,0.00011233,2]
[327057585,1715760632418,-523.66,0.00011233,2]
[327057587,1715760632427,-523.66,0.00011233,2]
[327057588,1715760632436,-163.35,0.00011233,2]
[327057589,1715760632447,-870.02,0.00011233,2]
[327057590,1715760632456,-163.35,0.00011233,2]
[327057591,1715760632465,-163.35,0.00011233,2]
[327057592,1715760632475,-163.35,0.00011233,2]
[327057593,1715760632484,-163.35,0.00011233,2]
[327057594,1715760632493,-164.42,0.00011233,2]
[327057595,1715760632502,-1000.0,0.000113,4]
[327057596,1715760632511,-309.59,0.00011363,2]
[327057597,1715760632520,-326.47,0.00011378,2]
[327057598,1715760632529,-791.74127101,0.000114,4]
[327057599,1715760632541,-521.36640746,0.000114,4]
[327057600,1715760632552,-186.89232153,0.000114,4]
[327057601,1715760632562,-384.72708746,0.0001145,2]
[327057602,1715760632747,-138.88291254,0.0001145,2]
[327057603,1715760632757,-199.58,0.0001145,2]
[327057604,1715760632767,-153.68,0.0001145,2]
[327057605,1715760632776,-271.89499638,0.0001145,2]
[327057606,1715760632788,-251.71500362,0.0001145,2]
[327057607,1715760632797,-676.10192638,0.000115,4]
[327057626,1715760637817,-200.29,0.00010959,2]
[327057627,1715760637827,-1323.89807362,0.000115,4]
[327057628,1715760637837,-2500.0,0.000116,4]
[327057629,1715760637847,-500.0,0.000117,4]
[327057630,1715760637856,-5616.88791264,0.00011717,2]
[327057631,1715760637866,-1000.0,0.00011726,2]
[327057632,1715760637875,-367.9752,0.00011727,2]
[327057633,1715760637885,-7408.1869,0.00011727,2]
[327057634,1715760637894,-1000.0,0.00011727,2]
[327057635,1715760637903,-500.0,0.000118,4]
[327057636,1715760637913,-1000.0,0.000118,2]
[327057637,1715760637923,-356.35353314,0.00011807,2]
[327057638,1715760637932,-3000.0,0.0001181,2]
[327057639,1715760637942,-57356.4958,0.00011827,2]
[327057640,1715760637951,-10000.0,0.00011827,2]
[327057641,1715760637961,-20216.6879,0.00011827,2]
[327057642,1715760637970,-29909.5605,0.00011827,2]
[327057643,1715760637979,-1000.0,0.00011827,2]
[327057644,1715760637988,-1953.5447,0.00011827,2]
[327057645,1715760637998,-172.44379033,0.00011827,2]
[327057646,1715760638008,-813.67848458,0.00011827,2]
[327057647,1715760638017,-47015.66945715,0.00011827,2]
[327057648,1715760638027,-200.0,0.00011831,2]
[327057649,1715760638036,-500.0,0.00011831,2]
[327057650,1715760638046,-200.0,0.00011832,2]
[327057651,1715760638055,-1000.0,0.00011832,2]
[327057652,1715760638065,-500.0,0.00011832,2]
[327057653,1715760638075,-500.0,0.00011832,2]
[327057654,1715760638088,-157.60467194,0.00011899,2]
[327057655,1715760638097,-500.0,0.000119,4]
[327057656,1715760638104,-47015.66945715,0.00011906,2]
[327057657,1715760638110,-458.64921469,0.00011919,2]
[327057658,1715760638118,-237.03007984,0.0001192,2]
[327057659,1715760638125,-155.81495,0.00011925,2]
[327057660,1715760638132,-3003.06301943,0.00011925,2]
[327057661,1715760638139,-268.1006071,0.00011925,2]
[327057662,1715760638146,-260.95864104,0.00011925,2]
[327057663,1715760638153,-1430.5439655,0.00011925,2]
[327057664,1715760638160,-1221.39011044,0.00011926,2]
[327057665,1715760638168,-1093.97727181,0.00011926,3]
[327057666,1715760638175,-1093.97727181,0.00011926,3]
[327057667,1715760638183,-1093.97727181,0.00011926,3]
[327057668,1715760638190,-207.92488696,0.00011926,2]
[327057669,1715760638198,-5865.7372962,0.00011926,2]
[327057670,1715760638205,-500.0,0.00011926,2]
[327057671,1715760638213,-500.0,0.00011926,2]
[327057672,1715760638221,-500.0,0.00011926,2]
[327057673,1715760638228,-500.0,0.00011926,2]
[327057674,1715760638236,-500.0,0.00011926,2]
[327057675,1715760638246,-500.0,0.00011926,2]
[327057676,1715760638255,-500.0,0.00011926,2]
[327057677,1715760638265,-500.0,0.00011926,2]
[327057678,1715760638275,-389.13039446,0.00011926,2]
[327057679,1715760638284,-547.0,0.00011926,2]
[327057680,1715760638293,-271872.72152702,0.00011926,2]
[327057681,1715760638302,-53536.87485205,0.00011927,2]
[327057682,1715760638314,-819236.53115778,0.00011927,2]
[327057683,1715760638329,-15423.49168089,0.00011927,2]
[327057684,1715760638346,-1152.62062948,0.00011927,2]
[327057685,1715760638367,-23994.01917358,0.00011927,2]
[327057686,1715760638379,-623.3,0.00011927,2]
[327057688,1715760640324,-6193.7628,0.00011927,2]
[327057711,1715760643181,-181015.97710076,0.00011927,2]
[327057712,1715760643193,-1214.6609942,0.00011927,2]
[327057741,1715760645809,-194.87419193,0.00011925,2]
[327057743,1715760645820,-1046.57312947,0.00011926,3]
[327057745,1715760645830,-1046.57312946,0.00011926,3]
[327057747,1715760645840,-7818.49596052,0.00011927,2]
[327057757,1715760645921,-6154.7173743,0.00011927,2]
[327057766,1715760646129,-1407.85154577,0.00011927,2]
[327057798,1715761831947,-268.16087153,8.631e-05,2]
[327057799,1715761831956,-37.25035926,8.632e-05,2]
[327057800,1715761832035,-117.74964074,8.632e-05,2]
[327057801,1715761832044,-747.71064743,8.632e-05,2]
[327057803,1715761832056,-315.72986655,8.632e-05,2]
[327057804,1715761832066,-162.51835584,8.633e-05,2]
[327057805,1715761832075,-3007.03887667,8.633e-05,2]
[327057806,1715761832085,-1115.84518239,8.635e-05,2]
[327057807,1715761832094,-628.17,8.655e-05,2]
[327057808,1715761832104,-428.30687788,0.0001,2]
[327057809,1715761832113,-170.99,0.00010182,2]
[327057810,1715761832121,-106.39148573,0.00010279,2]
[327057811,1715761832151,-317.65,0.00010279,2]
[327057812,1715761832164,-134.73851427,0.00010279,2]
[327057813,1715761832173,-250.0,0.00010307,2]
[327057814,1715761832182,-150.0,0.00010452,2]
[327057815,1715761832191,-462.585,0.00010453,2]
[327057816,1715761832200,-250.0,0.00010474,2]
[327057817,1715761832209,-1000.0,0.00010769,2]
[327057818,1715761832219,-150.0,0.000108,2]
[327057819,1715761832228,-420.4,0.00010878,2]
[327057820,1715761832238,-150.0,0.00010878,2]
[327057821,1715761832247,-228.75,0.000109,2]
[327057822,1715761832256,-628.17,0.00010919,2]
[327057823,1715761832266,-2002.85096522,0.00010958,2]
[327057824,1715761832278,-203.86,0.00010959,2]
[327057825,1715761832288,-169.88,0.00010959,2]
[327057826,1715761832299,-849.42,0.00010959,2]
[327057827,1715761832308,-844.18,0.00010978,2]
[327057828,1715761832317,-335.94,0.00010978,2]
[327057829,1715761832327,-420.4,0.00010978,2]
[327057830,1715761832336,-1435.17084717,0.00011,2]
[327057831,1715761832345,-200.0,0.00011,2]
[327057832,1715761832354,-150.0,0.00011178,2]
[327057833,1715761832364,-300.0,0.000113,4]
[327057834,1715761832373,-163.35,0.0001137,2]
[327057835,1715761832382,-163.35,0.0001137,2]
[327057836,1715761832391,-163.35,0.0001137,2]
[327057837,1715761832400,-600.0,0.000114,4]
[327057838,1715761832409,-754.54991574,0.000115,4]
[327057839,1715761832422,-145.45008426,0.000115,4]
[327057840,1715761832438,-150.0,0.000116,2]
[327057841,1715761832447,-98.25420754,0.000116,4]
[327057842,1715761832459,-586.85226721,0.000116,4]
[327057843,1715761832470,-469.2514686,0.000116,4]
[327057844,1715761832487,-145.64205665,0.000116,4]
[327057845,1715761832496,-163.66828382,0.00011627,2]
[327057846,1715761832510,-46.83871618,0.00011627,2]
[327057847,1715761832520,-2487.5065,0.00011627,2]
[327057848,1715761832529,-2162.2645,0.00011627,2]
[327057849,1715761832539,-1600.0,0.000117,4]
[327057850,1715761832548,-5616.88791264,0.00011717,2]
[327057851,1715761832558,-1000.0,0.00011726,2]
[327057852,1715761832567,-1000.0,0.00011727,2]
[327057853,1715761832576,-1953.5447,0.00011727,2]
[327057854,1715761832586,-367.9752,0.00011727,2]
[327057855,1715761832596,-2500.0,0.00011727,2]
[327057856,1715761832606,-45355.92394891,0.00011727,2]
[327057857,1715761832617,-27049.70015109,0.00011727,2]
[327057858,1715761832627,-300.0,0.000118,4]
[327057859,1715761832638,-407.29953225,0.00011807,2]
[327057860,1715761832647,-7500.0,0.00011826,2]
[327057861,1715761832657,-500.0,0.00011827,2]
[327057862,1715761832666,-17480.69696703,0.00011827,2]
[327057863,1715761832688,-437.84946544,0.00011827,2]
[327057864,1715761832700,-22392.0,0.00011827,2]
[327057886,1715761838079,-7553.02806621,0.00011827,2]
[327057896,1715761838164,-498.35828287,0.00011827,2]
[327057898,1715761838177,-2294.00289586,0.00011827,2]
[327057900,1715761838189,-367.91860956,0.00011827,2]
[327057905,1715761838567,-6214.6915,0.00011827,2]
[327057906,1715761838578,-2948.26001257,0.00011827,2]
[327057907,1715761838589,-29493.61780046,0.00011827,2]
[327057908,1715761838598,-15938.0169,0.00011827,2]
[327057909,1715761838607,-7408.1869,0.00011827,2]
[327057910,1715761838616,-10000.0,0.00011827,2]
[327057911,1715761838625,-172.44379033,0.00011827,2]
[327057912,1715761838634,-813.67848458,0.00011827,2]
[327057913,1715761838643,-48047.39866891,0.00011827,2]
[327057914,1715761838652,-165.70238202,0.00011827,2]
[327057915,1715761838661,-500.0,0.00011832,2]
[327057916,1715761838670,-170.99,0.00011879,2]
[327057917,1715761838679,-157.60467194,0.00011899,2]
[327057918,1715761838688,-1000.0,0.000119,2]
[327057919,1715761838697,-300.0,0.000119,4]
[327057920,1715761838706,-10000.0,0.00011911,2]
[327057921,1715761838715,-48047.3986689,0.00011913,2]
[327057922,1715761838724,-3596.18508117,0.00011914,2]
[327057923,1715761838732,-190.88176307,0.00011917,2]
[327057924,1715761838742,-882.63658573,0.00011924,2]
[327057925,1715761838750,-1623.84550739,0.00011925,2]
[327057926,1715761838759,-1654.32394204,0.00011925,2]
[327057927,1715761838768,-418.64073635,0.00011925,2]
[327057928,1715761838778,-308.29127217,0.00011925,2]
[327057929,1715761838788,-312.80892937,0.00011925,2]
[327057930,1715761838798,-155.08069046,0.00011925,2]
[327057931,1715761838808,-155.06893201,0.00011925,2]
[327057932,1715761838818,-155.0,0.00011925,2]
[327057933,1715761838827,-156.20859514,0.00011925,2]
[327057934,1715761838836,-155.12665646,0.00011925,2]
[327057935,1715761838846,-1092.21850017,0.00011925,2]
[327057936,1715761838855,-655.88237123,0.00011925,2]
[327057937,1715761838864,-1483.60627203,0.00011925,2]
[327057938,1715761838873,-156.51438352,0.00011925,2]
[327057939,1715761838883,-155.85127597,0.00011925,2]
[327057940,1715761838893,-280.41010483,0.00011925,2]
[327057941,1715761838902,-155.0,0.00011925,2]
[327057942,1715761838911,-217.17697784,0.00011925,2]
[327057943,1715761838921,-155.71437398,0.00011925,2]
[327057944,1715761838930,-360.30276025,0.00011925,2]
[327057945,1715761838940,-155.0,0.00011925,2]
[327057946,1715761838949,-155.6340249,0.00011925,2]
[327057947,1715761838958,-155.77455359,0.00011925,2]
[327057948,1715761838967,-1470.72490702,0.00011925,2]
[327057949,1715761838977,-2002.352608,0.00011925,2]
[327057950,1715761838986,-155.79864365,0.00011925,2]
[327057951,1715761838996,-155.11765272,0.00011925,2]
[327057955,1715761839195,-156.24718338,0.00011925,2]
[327057956,1715761839211,-5269.38829071,0.00011925,2]
[327057957,1715761839220,-155.21291681,0.00011925,2]
[327057958,1715761839231,-685.59205887,0.00011925,2]
[327057959,1715761839241,-155.39289688,0.00011925,2]
[327057960,1715761839251,-308.04572919,0.00011925,2]
[327057961,1715761839261,-3279.04154518,0.00011925,2]
[327057962,1715761839271,-223.19066619,0.00011925,2]
[327057963,1715761839280,-2325.27290029,0.00011925,2]
[327057964,1715761839289,-167.79243885,0.00011925,2]
[327057965,1715761839299,-167.69662183,0.00011925,2]
[327057966,1715761839309,-238.29327858,0.00011925,2]
[327057967,1715761839319,-318.76754807,0.00011925,2]
[327057968,1715761839329,-195.94725207,0.00011925,2]
[327057969,1715761839338,-363.90942921,0.00011925,2]
[327057970,1715761839348,-260.95864104,0.00011925,2]
[327057971,1715761839358,-4292.26828333,0.00011925,2]
[327057972,1715761839368,-522.58627625,0.00011925,2]
[327057973,1715761839378,-207.92488696,0.00011926,2]
[327057974,1715761839388,-5865.7372962,0.00011926,2]
[327057975,1715761839398,-1093.97727181,0.00011926,3]
[327057976,1715761839408,-1093.97727181,0.00011926,3]
[327057977,1715761839417,-1093.97727181,0.00011926,3]
[327057978,1715761839428,-597.0,0.00011926,2]
[327057979,1715761839440,-299562.9757909,0.00011926,2]
[327057980,1715761839450,-71378.13762629,0.00011927,2]
[327057981,1715761839463,-819236.53115778,0.00011927,2]
[327057982,1715761839489,-1411521.04714661,0.00011927,2]
[327057987,1715761840212,-1047.2,0.00011911,2]
[327057988,1715761840419,-551.1237966,0.00011911,2]
[327057989,1715761840441,-1915.17158947,0.00011911,2]
[327057990,1715761840451,-2623.22937881,0.00011927,2]
[327057991,1715761840537,-57038.8575508,0.00011927,2]
[327057992,1715761840550,-326.405,0.00011927,2]
[327057993,1715761840582,-1329.74,0.00011927,2]
[327057994,1715761840678,-401220.48391858,0.00011927,2]
[327058028,1715761843279,-3380.60387512,0.00011727,2]
[327058029,1715761843446,-292.5,0.00011727,2]
[327058030,1715761843458,-622.22,0.00011727,2]
[327058058,1715761846065,-2502.73459621,0.00011727,2]
[327058061,1715761846123,-3056.8419252,0.00011727,2]
[327058065,1715761846153,-18122.04050347,0.00011727,2]
[327058068,1715761846164,-409.44014041,0.00011925,2]
[327058070,1715761846174,-268.16087153,0.00011926,2]
[327058072,1715761846189,-296.52793948,0.00011926,2]
[327058074,1715761846200,-2603.72080498,0.00011926,2]
[327058076,1715761846211,-75575.94421192,0.00011927,2]
[327058079,1715761846223,-471.28098169,0.00011927,2]
[327058087,1715761846299,-1440.39783507,0.00011927,2]
[327058205,1715762402466,-525.49588025,8.87e-05,2]
[327058208,1715762431507,3474.50411975,8.87e-05,2]
[327058209,1715762431529,4000.0,8.87e-05,2]
[327058210,1715762431550,4000.0,8.87e-05,2]
[327058211,1715762431571,4000.0,8.87e-05,2]
[327058212,1715762431592,4000.0,8.87e-05,2]
[327058213,1715762431616,4000.0,8.87e-05,2]
[327058214,1715762431639,4000.0,8.87e-05,2]
[327058215,1715762431661,4000.0,8.87e-05,2]
[327058216,1715762431683,4000.0,8.87e-05,2]
[327058217,1715762431704,4000.0,8.87e-05,2]
[327058218,1715762431724,4000.0,8.87e-05,2]
[327058219,1715762431747,4000.0,8.87e-05,2]
[327058220,1715762431768,4000.0,8.87e-05,2]